[Event "German Bundesliga 2024-25"]
[Site "Germany"]
[Date "2025.01.11"]
[Round "5.12"]
[White "Efimenko, Zahar"]
[Black "Van Foreest, Jorden"]
[Result "0-1"]
[Annotator "TA"]
[ECO "C84"]
[WhiteElo "2567"]
[BlackElo "2687"]
[PlyCount "98"]
[EventDate "2024.09.27"]
[EventType "team-tourn"]
[EventCountry "GER"]
[SourceTitle "playchess.com"]
[Source "ChessBase"]
[SourceQuality "1"]
[WhiteTeam "Werder Bremen"]
[BlackTeam "Duesseldorf"]
[TimeControl "40/5400+30:1800+30"]

{[%evp 15,98,9,21,0,0,0,0,0,0,0,12,0,0,0,0,0,0,0,0,0,0,0,17,8,12,0,0,0,14,-8,0,-9,-5,-10,-2,-7,-14,-22,-31,-26,-28,-56,-58,-77,-69,-92,-45,-53,-45,-103,-77,-39,-35,-117,-103,-111,-93,-128,-128,-141,-124,-161,-161,-161,-161,-161,-161,-161,-161,-161,-161,-302,-283,-487,-504,-888,-1027,-1143,-1163,-1061,-999,-934,-836,-1313,-1285]} 1. e4 {[%emt 0:00:41]} e5 {[%emt 0:00:09]} 2. Nf3 {[%emt 0:00:11]} Nc6 {[%emt 0:00:09]} 3. Bb5 {[%emt 0:00:24]} a6 {[%emt 0:00:15]} 4. Ba4 {[%emt 0:00:12]} Nf6 {[%emt 0:00:09]} 5. O-O {[%emt 0:00:30]} Be7 {[%emt 0:00:10]} 6. d3 {[%emt 0:00:42]} b5 {[%emt 0:01:09]} 7. Bb3 {[%emt 0:00:07]} d6 {[%emt 0:00:07]} 8. a4 {[%emt 0:00:46]} Bd7 {[%emt 0:02:13]} 9. Be3 {[%emt 0:04:16]} O-O {[%emt 0:03:31]} 10. axb5 {[%emt 0:01:23]} axb5 {[%emt 0:00:09]} 11. Nc3 {[%emt 0:00:07] The position is equal.} Rxa1 {[%emt 0:03:03]} 12. Qxa1 {[%emt 0:00:20]} Nb4 {[%emt 0:00:03]} 13. Na2 {[%emt 0:02:44]} Nc6 {[%emt 0:00:09]} 14. Nc3 {[%emt 0:00:44]} Nb4 {[%emt 0:00:59]} 15. Qa5 {[%emt 0:01:36]} c5 {[%emt 0:00:10]} 16. Ra1 {[%emt 0:01:13]} Qxa5 {[%emt 0:02:56]} 17. Rxa5 {[%emt 0:00:53][%cal Oe3g5]} Rb8 {[%emt 0:00:11][%cal Oc5c4]} 18. Bg5 {[%emt 0:07:21]} Bd8 {[%emt 0:00:41]} 19. Ra1 {[%emt 0:07:18]} Be6 {[%emt 0:10:13]} 20. Bxe6 {[%emt 0:02:58]} fxe6 {[%emt 0:00:08]} 21. Ne1 {[%emt 0:00:26]} Nc6 {[%emt 0:08:03]} 22. Ne2 {[%emt 0:10:01]} Kf7 {[%emt 0:01:31]} 23. h3 {[%emt 0:12:28]} Ke8 {[%emt 0:02:13]} 24. Be3 {[%emt 0:03:09]} Kd7 {[%emt 0:02:02]} 25. f4 {[%emt 0:05:17]} exf4 {[%emt 0:00:46]} 26. Nxf4 {[%emt 0:00:04]} g5 {[%emt 0:04:14]} 27. Ne2 {[%emt 0:00:25]} g4 {[%emt 0:00:07]} 28. h4 {[%emt 0:08:27]} Nh5 {[%emt 0:02:15]} 29. Bf2 {[%emt 0:06:30]} Bf6 {[%emt 0:00:34]} 30. Ra2 {[%emt 0:01:25]} Kc7 {[%emt 0:04:30] Black is more active.} (30... b4 $17 {Hoping for ...b3.} 31. b3 Bd8) 31. g3 $15 {[%emt 0:02:24]} Bg7 {[%emt 0:12:36]} 32. b3 {[%emt 0:04:05]} (32. Kg2 $15) 32... Kb7 {[%emt 0:03:34]} 33. c3 {[%emt 0:01:54] Dodges Nb4} b4 {[%emt 0:00:49]} 34. cxb4 {[%emt 0:00:09] Black continues to play with concentration.} (34. d4 $1 $15) 34... Nxb4 $17 {[%emt 0:00:05]} 35. Ra4 {[%emt 0:01:33][%cal Oe4e5]} Nc6 $36 {[%emt 0:01:07][%mdl 2048] Black is on the roll.} 36. Nc2 {[%emt 0:08:52]} Kc7 {[%emt 0:00:57]} 37. d4 {[%emt 0:00:11]} cxd4 {[%emt 0:02:16]} 38. Ncxd4 {[%emt 0:03:14]} Bxd4 {[%emt 0:00:06]} 39. Nxd4 {[%emt 0:00:29]} Nxd4 {[%emt 0:00:04]} 40. Rxd4 {[%emt 0:01:11][%cal Oe4e5][%mdl 4096] Endgame. [#] KRB-KRN} e5 $1 {[%emt 0:03:54]} 41. Rc4+ {[%emt 0:33:17]} Kd7 {[%emt 0:30:17]} 42. Ra4 {[%emt 0:00:00]} Nf6 {[%emt 0:00:00]} 43. b4 {[%emt 0:00:00]} (43. Kf1 {was worth a try.}) 43... Nxe4 $19 {[%emt 0:00:00]} 44. b5 $2 {[%emt 0:00:00]} (44. h5 {keeps fighting.}) 44... d5 {[%emt 0:00:00] Black is clearly winning.} 45. Rb4 {[%emt 0:00:00]} (45. Ra7+ $142 Ke6 46. Ra6+ Kf5 47. b6) 45... Nxf2 {[%emt 0:00:00]} 46. Kxf2 {[%emt 0:00:00]} h5 {[%emt 0:00:00]} 47. Rb1 {[%emt 0:00:00]} Rb6 {[%emt 0:00:00] [#] aiming for ...d4.} 48. Ke2 {[%emt 0:00:00]} Kd6 {[%emt 0:00:00] And now ...d4 would win.} 49. Kd2 {[%emt 0:00:00]} d4 {[%emt 0:04:46] Weighted Error Value: White=0.44/Black=0.05 (flawless) .  Mistake:       	White=5     	Black=1      Inaccurate:     	White=2     	---        OK:         	White=11    	Black=20     Best:        	White=1     	---} 0-1

[Event "German Bundesliga 2024-25"]
[Site "Germany"]
[Date "2025.01.11"]
[Round "5.13"]
[White "Esipenko, Andrey"]
[Black "Van Foreest, Lucas"]
[Result "1/2-1/2"]
[Annotator "TA"]
[ECO "C55"]
[WhiteElo "2682"]
[BlackElo "2520"]
[PlyCount "65"]
[EventDate "2024.09.27"]
[EventType "team-tourn"]
[EventCountry "GER"]
[SourceTitle "playchess.com"]
[Source "ChessBase"]
[SourceQuality "1"]
[WhiteTeam "Duesseldorf"]
[BlackTeam "Werder Bremen"]
[TimeControl "40/5400+30:1800+30"]

{[%evp 10,65,10,11,12,15,9,9,10,5,8,15,10,1,17,16,14,8,0,0,12,8,0,-26,-36,-26,-24,-32,-33,-34,-41,-40,-38,-41,-38,-40,-44,-35,-28,-28,-28,-28,-28,-28,-28,-39,-12,-43,-12,-12,-12,-12,0,-12,0,-12,0,-12]} 1. e4 {[%emt 0:00:08]} e5 {[%emt 0:00:30]} 2. Nf3 {[%emt 0:00:15]} Nc6 {[%emt 0:00:16]} 3. Bc4 {[%emt 0:00:19]} Nf6 {[%emt 0:00:19]} 4. Nc3 {[%emt 0:00:26]} Nxe4 {[%emt 0:04:40]} 5. Nxe4 {[%emt 0:00:10]} d5 {[%emt 0:00:01]} 6. Bd3 {[%emt 0:00:11] White wants to play Nc3.} Nb4 {[%emt 0:04:11]} (6... dxe4 {simplifies} 7. Bxe4 Nd4 8. Nxd4 exd4 9. O-O Be7) 7. Nc3 {[%emt 1:02:24]} e4 {[%emt 0:00:37] [#]} 8. Bxe4 $1 {[%emt 0:03:33]} dxe4 {[%emt 0:03:16]} 9. Nxe4 {[%emt 0:00:07]} Bf5 {[%emt 0:00:37]} 10. d3 {[%emt 0:07:03]} Bxe4 $1 {[%emt 0:00:16]} 11. dxe4 {[%emt 0:00:04]} Qxd1+ {[%emt 0:00:04]} 12. Kxd1 {[%emt 0:00:05]} Bc5 {[%emt 0:00:16]} 13. a3 {[%emt 0:03:31]} O-O-O+ {[%emt 0:03:17]} 14. Nd2 {[%emt 0:00:07]} Nc6 {[%emt 0:00:46][%cal Od8d7]} 15. f3 {[%emt 0:00:30]} Be3 {[%emt 0:17:55]} 16. c3 {[%emt 0:01:41] [#]} Rxd2+ $1 {[%emt 0:00:25]} 17. Bxd2 {[%emt 0:00:09]} Rd8 {[%emt 0:00:02]} 18. Ke2 $1 {[%emt 0:00:31]} Bxd2 {[%emt 0:00:03]} 19. Rad1 {[%emt 0:00:45]} Bf4 {[%emt 0:00:52]} 20. Rxd8+ {[%emt 0:00:16]} Kxd8 {[%emt 0:00:07]} 21. g3 {[%emt 0:01:08]} Bd6 {[%emt 0:00:05]} 22. f4 {[%emt 0:00:26]} f6 {[%emt 0:00:06]} 23. b4 {[%emt 0:01:03]} Ke7 {[%emt 0:01:07]} 24. h4 {[%emt 0:05:12]} Nd8 {[%emt 0:03:52]} 25. Rb1 {[%emt 0:03:48]} c6 {[%emt 0:00:43]} 26. a4 {[%emt 0:01:52]} Bc7 {[%emt 0:02:14]} 27. a5 {[%emt 0:00:33]} Nf7 {[%emt 0:02:22]} 28. Kd3 {[%emt 0:01:03]} Ke6 {[%emt 0:03:49]} 29. h5 {[%emt 0:01:28]} Ke7 {[%emt 0:02:56]} 30. Rb2 {[%emt 0:00:55]} Ke6 {[%emt 0:01:08]} 31. Rb1 {[%emt 0:00:13]} Ke7 {[%emt 0:00:06]} 32. Rb2 {[%emt 0:00:10]} Ke6 {[%emt 0:00:05]} 33. Rb1 {[%emt 0:00:06]} 1/2-1/2

[Event "German Bundesliga 2024-25"]
[Site "Germany"]
[Date "2025.01.11"]
[Round "5.13"]
[White "Bogosavljevic, Boban"]
[Black "Michalik, Peter"]
[Result "1/2-1/2"]
[Annotator "TA"]
[ECO "D02"]
[WhiteElo "2480"]
[BlackElo "2562"]
[PlyCount "82"]
[EventDate "2024.09.27"]
[EventType "team-tourn"]
[EventCountry "GER"]
[SourceTitle "playchess.com"]
[Source "ChessBase"]
[SourceQuality "1"]
[WhiteTeam "Deggendorf"]
[BlackTeam "TU Dresden"]
[TimeControl "40/5400+30:1800+30"]

{[%evp 11,82,14,9,23,34,22,24,22,18,1,9,0,0,0,16,-12,0,0,0,0,-9,-18,0,-24,35,22,131,124,138,156,150,141,181,162,166,145,173,167,163,177,209,165,155,159,196,183,175,167,162,125,173,106,104,120,107,73,94,58,63,66,59,60,58,49,51,0,0,-8,-8,-15,-5,-8,0]} 1. Nf3 {[%emt 0:00:09]} d5 {[%emt 0:00:05]} 2. d4 {[%emt 0:00:13]} Nf6 {[%emt 0:00:22]} 3. g3 {[%emt 0:00:26]} c5 {[%emt 0:01:00]} 4. Bg2 {[%emt 0:00:38]} cxd4 {[%emt 0:00:42]} 5. O-O {[%emt 0:00:16]} a6 {[%emt 0:02:21]} 6. Nxd4 {[%emt 0:11:06]} e5 {[%emt 0:02:12]} 7. Nb3 {[%emt 0:00:08]} Be7 {[%emt 0:02:54]} 8. Bg5 {[%emt 0:19:59]} Nbd7 {[%emt 0:06:12]} 9. c4 {[%emt 0:06:43]} dxc4 {[%emt 0:00:22]} 10. N3d2 {[%emt 0:00:09]} Qc7 {[%emt 0:01:51]} 11. Qc1 {[%emt 0:07:03]} Nb6 {[%emt 0:03:27]} 12. a4 {[%emt 0:02:38]} Be6 {[%emt 0:00:00]} 13. b3 {[%emt 0:14:11]} O-O {[%emt 0:05:54]} 14. a5 {[%emt 0:01:07]} Nbd7 {[%emt 0:00:23]} 15. Nxc4 {[%emt 0:00:18]} Rac8 {[%emt 0:01:48]} 16. Nbd2 {[%emt 0:07:40]} Qb8 {[%emt 0:08:44]} 17. Qb2 {[%emt 0:07:25]} Bc5 {[%emt 0:05:20]} ({Black should try} 17... Rc5 $11) 18. Bxf6 {[%emt 0:03:45]} Bd4 {[%emt 0:00:50]} (18... gxf6 $11 19. Rac1 b5 20. axb6 Nxb6) 19. Bxe5 $1 $16 {[%emt 0:02:15]} Bxe5 {[%emt 0:13:42]} 20. Nxe5 {[%emt 0:00:07]} Nxe5 {[%emt 0:00:03]} 21. Rfc1 {[%emt 0:01:04]} f6 {[%emt 0:01:21]} 22. Rxc8 {[%emt 0:01:07]} Rxc8 {[%emt 0:00:11]} 23. Rc1 {[%emt 0:00:37]} Rd8 {[%emt 0:05:52]} 24. Nc4 {[%emt 0:09:14]} Nc6 {[%emt 0:00:05]} 25. b4 {[%emt 0:01:45]} h5 {[%emt 0:04:37]} 26. h3 {[%emt 0:01:44]} h4 {[%emt 0:00:15]} 27. g4 {[%emt 0:00:11]} Qf4 {[%emt 0:05:33]} 28. e3 {[%emt 0:00:14]} Qg5 {[%emt 0:00:03] [#]} 29. Nd2 $1 {[%emt 0:01:32]} Qb5 {[%emt 0:00:52]} 30. Ne4 {[%emt 0:00:19]} Bf7 {[%emt 0:01:19] [#]} (30... Qxb4 $16 {might work better.} 31. Qxb4 Nxb4) 31. Nc3 {[%emt 0:00:56]} (31. Nc5 $1 $18 {[%cal Rc5b7]}) 31... Qxb4 $16 {[%emt 0:01:22]} 32. Qxb4 {[%emt 0:00:10]} Nxb4 {[%emt 0:00:03]} 33. Rb1 {[%emt 0:00:20]} Na2 {[%emt 0:01:50]} 34. Ne4 {[%emt 0:01:23]} (34. Nxa2 Bxa2 35. Ra1 (35. Rxb7 Rd1+ 36. Kh2 Rd2 $11) 35... Bc4) 34... Rd5 $1 {[%emt 0:02:10]} 35. Rxb7 {[%emt 0:00:13]} Rxa5 {[%emt 0:00:04]} 36. Nd6 {[%emt 0:00:27]} Bg6 $1 {[%emt 0:00:48]} 37. f4 {[%emt 0:00:37]} Bd3 $1 {[%emt 0:00:45]} 38. Ne8 {[%emt 0:00:49]} (38. Bf1 $14 Nb4 39. Bxd3 (39. Rxb4 Ra1 $11) 39... Nxd3 40. Ra7) 38... Nc3 $11 {[%emt 0:04:55]} 39. Nd6 {[%emt 0:00:30]} ({But not} 39. Rxg7+ Kf8 40. Rd7 Bb5 (40... Kxe8 41. Rxd3 Ra1+ 42. Kh2 $16) 41. Nxf6 Ra1+ 42. Kf2 Bxd7 43. Nxd7+ Kg7 $17) 39... Ra1+ {[%emt 0:01:20]} 40. Kh2 {[%emt 0:00:08]} Ra2 {[%emt 0:00:06]} 41. Kh1 {[%emt 0:01:46]} Ra1+ {[%emt 0:06:24]} 1/2-1/2

[Event "German Bundesliga 2024-25"]
[Site "Germany"]
[Date "2025.01.11"]
[Round "5.14"]
[White "Hracek, Zbynek"]
[Black "Sadhwani, Raunak"]
[Result "1/2-1/2"]
[Annotator "TA"]
[ECO "C67"]
[WhiteElo "2541"]
[BlackElo "2675"]
[PlyCount "41"]
[EventDate "2024.09.27"]
[EventType "team-tourn"]
[EventCountry "GER"]
[SourceTitle "playchess.com"]
[Source "ChessBase"]
[SourceQuality "1"]
[WhiteTeam "Werder Bremen"]
[BlackTeam "Duesseldorf"]
[TimeControl "40/5400+30:1800+30"]

{[%evp 18,41,12,16,24,13,8,16,19,16,20,4,2,8,10,0,10,0,12,10,5,0,0,0,0,0]} 1. e4 {[%emt 0:00:02]} e5 {[%emt 0:00:11]} 2. Nf3 {[%emt 0:00:09]} Nc6 {[%emt 0:00:06]} 3. Bb5 {[%emt 0:00:07]} Nf6 {[%emt 0:00:07]} 4. O-O {[%emt 0:01:26][%cal Bh1f1,Bf1e1,Be1e5][%mdl 32]} Nxe4 {[%emt 0:00:06]} 5. Re1 {[%emt 0:00:14]} Nd6 {[%emt 0:00:11]} 6. Nxe5 {[%emt 0:00:21]} Be7 {[%emt 0:00:10]} 7. Bf1 {[%emt 0:00:07]} Nxe5 {[%emt 0:00:06]} 8. Rxe5 {[%emt 0:00:07]} O-O {[%emt 0:00:05]} 9. d4 {[%emt 0:00:06]} Bf6 {[%emt 0:00:04]} 10. Re1 {[%emt 0:00:07]} Re8 {[%emt 0:00:07]} 11. Bf4 {[%emt 0:03:28]} Rxe1 {[%emt 0:00:13]} 12. Qxe1 {[%emt 0:00:04]} Ne8 {[%emt 0:00:16][%cal Bd6e8,Be8g7,Bg7f5][%mdl 32]} 13. c3 {[%emt 0:00:21]} d5 {[%emt 0:00:06]} 14. Bd3 {[%emt 0:02:18]} g6 {[%emt 0:00:07]} 15. Nd2 {[%emt 0:00:09][%cal Bb1d2,Bd2f3,Bf3e5][%mdl 32]} Ng7 {[%emt 0:00:06]} 16. Qe2 {[%emt 0:11:13]} c6 {[%emt 0:00:15]} 17. Re1 {[%emt 0:00:18]} Bf5 {[%emt 0:00:08]} 18. Bxf5 {[%emt 0:00:05]} Nxf5 {[%emt 0:00:07]} 19. Nf3 {[%emt 0:00:08]} Ng7 {[%emt 0:00:08]} 20. Be5 {[%emt 0:03:04]} Bxe5 {[%emt 0:00:31]} 21. Nxe5 {[%emt 0:02:17]} 1/2-1/2

[Event "German Bundesliga 2024-25"]
[Site "Germany"]
[Date "2025.01.11"]
[Round "5.14"]
[White "Neef, Maximilian"]
[Black "Delchev, Aleksander"]
[Result "1/2-1/2"]
[Annotator "TA"]
[ECO "D02"]
[WhiteElo "2469"]
[BlackElo "2464"]
[PlyCount "97"]
[EventDate "2024.09.27"]
[EventType "team-tourn"]
[EventCountry "GER"]
[SourceTitle "playchess.com"]
[Source "ChessBase"]
[SourceQuality "1"]
[WhiteTeam "TU Dresden"]
[BlackTeam "Deggendorf"]
[TimeControl "40/5400+30:1800+30"]

{[%evp 15,97,0,8,2,12,2,0,0,0,0,0,0,0,-6,0,-10,0,-13,-9,-13,-9,-17,0,0,0,0,7,9,10,0,7,0,16,1,6,0,0,0,0,0,0,0,0,0,0,0,0,0,0,0,0,0,0,-31,-19,-109,-109,-109,-6,-9,0,0,0,0,0,0,0,0,0,0,0,0,0,0,0,0,0,0,0,0,0,0,0,0]} 1. Nf3 {[%emt 0:00:05]} d5 {[%emt 0:00:18]} 2. g3 {[%emt 0:00:06]} g6 {[%emt 0:00:48]} 3. Bg2 {[%emt 0:00:13]} Bg7 {[%emt 0:00:09]} 4. d4 {[%emt 0:00:16]} Nf6 {[%emt 0:00:06]} 5. O-O {[%emt 0:00:05]} O-O {[%emt 0:00:05]} 6. c3 {[%emt 0:00:04]} Re8 {[%emt 0:02:59]} 7. Bf4 {[%emt 0:04:23]} Nbd7 {[%emt 0:01:12]} 8. Nbd2 {[%emt 0:06:37]} Nh5 {[%emt 0:00:53]} 9. Be3 {[%emt 0:01:38]} e5 {[%emt 0:06:08]} 10. dxe5 {[%emt 0:19:00]} Nxe5 {[%emt 0:00:47]} 11. Re1 {[%emt 0:00:29]} Nxf3+ {[%emt 0:23:30]} 12. Bxf3 {[%emt 0:02:46]} Nf6 {[%emt 0:00:07]} 13. Bd4 {[%emt 0:03:31]} c6 {[%emt 0:08:42]} 14. c4 {[%emt 0:13:59]} dxc4 {[%emt 0:07:49]} 15. Nxc4 {[%emt 0:00:48]} Be6 {[%emt 0:02:22]} 16. Rc1 {[%emt 0:09:24]} Qe7 {[%emt 0:00:41]} 17. e3 {[%emt 0:13:30]} Rad8 {[%emt 0:04:37]} 18. Qe2 {[%emt 0:01:23]} Nd7 {[%emt 0:11:17]} 19. Bxg7 {[%emt 0:03:06]} Kxg7 {[%emt 0:00:41]} 20. Red1 {[%emt 0:02:10]} Bxc4 {[%emt 0:07:31]} 21. Qxc4 {[%emt 0:00:48]} Qf6 {[%emt 0:00:26]} 22. Qe2 {[%emt 0:00:50]} Ne5 {[%emt 0:02:37]} 23. Bg2 {[%emt 0:00:35]} Rxd1+ {[%emt 0:00:19]} 24. Rxd1 {[%emt 0:00:09]} Rd8 {[%emt 0:00:03]} 25. b3 {[%emt 0:02:13]} Rd6 {[%emt 0:02:30]} 26. h3 {[%emt 0:05:08]} Qd8 {[%emt 0:00:40]} 27. Rxd6 {[%emt 0:00:17]} Qxd6 {[%emt 0:00:06]} 28. Kh2 {[%emt 0:00:57]} h5 {[%emt 0:04:45]} 29. Qb2 {[%emt 0:04:05]} (29. f4 $5 Nd7 $8 30. Qb2+ Kh7 31. Qc3 $11) 29... Kg8 {[%emt 0:00:07]} 30. f4 {[%emt 0:00:49]} Nd7 {[%emt 0:00:16]} 31. Qc3 {[%emt 0:00:53]} Nf8 {[%emt 0:04:43]} 32. b4 {[%emt 0:01:26]} Ne6 {[%emt 0:00:23]} 33. a3 {[%emt 0:02:37]} a6 {[%emt 0:00:15]} 34. Qf6 {[%emt 0:01:17]} Qd3 {[%emt 0:01:09]} 35. Qe5 {[%emt 0:00:52]} (35. e4 $11) 35... Qxa3 $17 {[%emt 0:01:05]} 36. Qb8+ {[%emt 0:00:32]} Nf8 {[%emt 0:01:44]} ({Black should play} 36... Kg7 $17 37. Qe5+ Kh7) 37. Qxb7 $11 {[%emt 0:00:16]} Qxe3 {[%emt 0:00:07]} 38. h4 $1 {[%emt 0:00:34]} Qe2 {[%emt 0:04:15]} 39. Qxc6 {[%emt 0:00:25]} Ne6 {[%emt 0:00:31]} 40. Qe4 {[%emt 0:01:25]} Qd2 {[%emt 0:02:21]} 41. f5 {[%emt 0:07:50]} gxf5 {[%emt 0:00:06]} 42. Qxf5 {[%emt 0:00:06]} Qxb4 {[%emt 0:00:15]} 43. Qxh5 {[%emt 0:00:29]} a5 {[%emt 0:03:46]} 44. Bd5 {[%emt 0:03:59]} Qe1 {[%emt 0:10:01]} 45. Qf3 {[%emt 0:08:08]} Kg7 {[%emt 0:02:02]} 46. Qg4+ {[%emt 0:07:28]} Kf8 {[%emt 0:01:38]} 47. Qf3 {[%emt 0:00:26]} Kg7 {[%emt 0:00:51]} 48. Qg4+ {[%emt 0:00:46]} Kf8 {[%emt 0:00:00]} 49. Qf3 {[%emt 0:00:45]} 1/2-1/2

[Event "German Bundesliga 2024-25"]
[Site "Germany"]
[Date "2025.01.11"]
[Round "5.15"]
[White "Gustafsson, Jan"]
[Black "Babula, Vlastimil"]
[Result "1/2-1/2"]
[Annotator "TA"]
[ECO "D35"]
[WhiteElo "2598"]
[BlackElo "2496"]
[PlyCount "43"]
[EventDate "2024.09.27"]
[EventType "team-tourn"]
[EventCountry "GER"]
[SourceTitle "playchess.com"]
[Source "ChessBase"]
[SourceQuality "1"]
[WhiteTeam "Duesseldorf"]
[BlackTeam "Werder Bremen"]
[TimeControl "40/5400+30:1800+30"]

{[%evp 15,43,18,18,17,25,19,15,23,27,20,13,22,23,0,8,0,11,0,0,3,16,0,1,0,25,33,27,11,15,-25]} 1. c4 {[%emt 0:00:05]} e6 {[%emt 0:00:38]} 2. Nc3 {[%emt 0:00:14]} d5 {[%emt 0:00:12]} 3. d4 {[%emt 0:00:10]} Nf6 {[%emt 0:00:25]} 4. cxd5 {[%emt 0:00:37]} exd5 {[%emt 0:00:10]} 5. Bg5 {[%emt 0:00:12]} c6 {[%emt 0:00:45]} 6. e3 {[%emt 0:00:40]} h6 {[%emt 0:00:25]} 7. Bh4 {[%emt 0:00:31]} Be7 {[%emt 0:00:21]} 8. Bd3 {[%emt 0:01:29]} O-O {[%emt 0:00:20]} 9. Nge2 {[%emt 0:02:30][%cal Bg1e2,Be2c1,Bc1b3,Bb3d2,Bd2f3,Bf3d4][%mdl 32]} Re8 {[%emt 0:02:36]} 10. O-O {[%emt 0:00:28]} Nh5 {[%emt 0:07:09]} 11. Bxe7 {[%emt 0:00:31]} Qxe7 {[%emt 0:00:37]} 12. Qd2 {[%emt 0:00:12]} Nd7 {[%emt 0:04:26][%cal Bb8d7,Bd7f6,Bf6e4][%mdl 32]} 13. Rae1 {[%emt 0:01:01]} Ndf6 {[%emt 0:05:23]} 14. Nc1 {[%emt 0:24:14]} Ne4 {[%emt 0:08:41]} 15. Qc2 {[%emt 0:02:38]} Bd7 {[%emt 0:14:58]} 16. Nb3 {[%emt 0:07:19]} b6 {[%emt 0:04:17]} 17. Nd2 {[%emt 0:08:13]} Nhf6 {[%emt 0:12:44]} 18. Nf3 {[%emt 0:04:09]} c5 {[%emt 0:02:50]} 19. dxc5 {[%emt 0:10:54]} Nxc5 {[%emt 0:14:07]} 20. Rc1 {[%emt 0:09:39]} Rac8 {[%emt 0:00:32]} 21. Nd4 {[%emt 0:02:20]} Nce4 {[%emt 0:00:54]} 22. Rfd1 {[%emt 0:06:09]} 1/2-1/2

[Event "German Bundesliga 2024-25"]
[Site "Germany"]
[Date "2025.01.11"]
[Round "5.15"]
[White "Popovic, Dusan"]
[Black "Boensch, Uwe"]
[Result "1/2-1/2"]
[Annotator "TA"]
[ECO "B31"]
[WhiteElo "2487"]
[BlackElo "2464"]
[PlyCount "41"]
[EventDate "2024.09.27"]
[EventType "team-tourn"]
[EventCountry "GER"]
[SourceTitle "playchess.com"]
[Source "ChessBase"]
[SourceQuality "1"]
[WhiteTeam "Deggendorf"]
[BlackTeam "TU Dresden"]
[TimeControl "40/5400+30:1800+30"]

{[%evp 9,41,1,34,0,0,-10,0,0,4,0,0,0,0,-17,0,-14,0,-15,17,-43,-39,-31,0,-33,-37,-38,-28,-70,-50,-68,-69,-61,-66,-64]} 1. e4 {[%emt 0:00:04]} c5 {[%emt 0:00:05]} 2. Nf3 {[%emt 0:00:11]} Nc6 {[%emt 0:00:11]} 3. Bb5 {[%emt 0:00:16]} g6 {[%emt 0:00:07]} 4. O-O {[%emt 0:00:50]} Bg7 {[%emt 0:00:07]} 5. c3 {[%emt 0:00:12]} a6 {[%emt 0:00:55]} 6. Ba4 {[%emt 0:10:42]} b5 {[%emt 0:03:05]} 7. Bb3 {[%emt 0:00:45]} Bb7 {[%emt 0:10:32]} 8. d4 {[%emt 0:01:19]} cxd4 {[%emt 0:00:30]} 9. cxd4 {[%emt 0:00:08]} Na5 {[%emt 0:00:22][%cal Oa5b3]} 10. Bc2 {[%emt 0:01:48]} Nf6 {[%emt 0:00:33]} 11. Qe2 {[%emt 0:04:03]} O-O {[%emt 0:05:05]} 12. Bd3 {[%emt 0:19:10]} d6 {[%emt 0:22:34]} 13. Bg5 {[%emt 0:18:44]} d5 {[%emt 0:27:11][%cal Rd5e4]} 14. Nbd2 {[%emt 0:07:38]} ({White should try} 14. e5 $11) 14... dxe4 {[%emt 0:00:50]} 15. Nxe4 {[%emt 0:00:06]} Nc4 {[%emt 0:05:44]} 16. Rfe1 {[%emt 0:09:48]} h6 {[%emt 0:05:46] Hoping for ...Nxe4.} 17. Bh4 {[%emt 0:03:55]} Rc8 {[%emt 0:08:12]} 18. Rad1 {[%emt 0:03:29]} Re8 {[%emt 0:00:50]} 19. b3 {[%emt 0:11:28] aiming for Nxf6+.} Nxe4 {[%emt 0:00:41]} 20. Bxe4 {[%emt 0:02:08]} Bxe4 {[%emt 0:00:02]} 21. Qxe4 {[%emt 0:01:13]} 1/2-1/2

[Event "German Bundesliga 2024-25"]
[Site "Germany"]
[Date "2025.01.11"]
[Round "5.16"]
[White "Wachinger, Nikolas"]
[Black "Bologan, Victor"]
[Result "0-1"]
[Annotator "TA"]
[ECO "C70"]
[WhiteElo "2441"]
[BlackElo "2600"]
[PlyCount "60"]
[EventDate "2024.09.27"]
[EventType "team-tourn"]
[EventCountry "GER"]
[SourceTitle "playchess.com"]
[Source "ChessBase"]
[SourceQuality "1"]
[WhiteTeam "Werder Bremen"]
[BlackTeam "Duesseldorf"]
[TimeControl "40/5400+30:1800+30"]

{[%evp 16,60,49,35,45,41,35,16,36,40,49,27,28,23,39,10,10,0,0,0,0,-37,-10,-17,0,7,0,-75,-55,-131,-128,-130,-123,-120,-95,-207,-156,-354,-359,-365,-348,-647,-649,-5369,-2900,-29976,-29971]} 1. e4 {[%emt 0:00:05]} e5 {[%emt 0:00:04]} 2. Nf3 {[%emt 0:00:09]} Nc6 {[%emt 0:00:05]} 3. Bb5 {[%emt 0:00:08][%cal Bf1b5,Bb5a4,Ba4b3][%mdl 32]} a6 {[%emt 0:00:06]} 4. Ba4 {[%emt 0:00:07]} b5 {[%emt 0:00:07]} 5. Bb3 {[%emt 0:00:07]} Na5 {[%emt 0:00:26]} 6. O-O {[%emt 0:05:22]} d6 {[%emt 0:00:23]} 7. d4 {[%emt 0:01:34]} exd4 {[%emt 0:00:14]} 8. Nxd4 {[%emt 0:01:34][%cal Bf3d4,Bd4b3,Bb3a5][%mdl 32]} Bb7 {[%emt 0:00:10]} 9. Bd2 {[%emt 0:07:46]} Nxb3 {[%emt 0:00:21]} 10. Nxb3 {[%emt 0:00:41]} Nf6 {[%emt 0:00:22][%cal Of8e7]} 11. Na5 {[%emt 0:05:55]} Qc8 {[%emt 0:00:12]} 12. Re1 {[%emt 0:04:10] aiming for e5.} Be7 $1 {[%emt 0:00:08]} 13. c4 {[%emt 0:15:32]} O-O {[%emt 0:02:25]} 14. Nc3 {[%emt 0:02:55]} Re8 {[%emt 0:08:39]} 15. Qb3 {[%emt 0:28:13]} Rb8 {[%emt 0:06:08]} 16. a4 {[%emt 0:02:14]} bxc4 {[%emt 0:18:11]} 17. Qxc4 {[%emt 0:00:15]} Ba8 {[%emt 0:00:16]} 18. b4 {[%emt 0:04:02]} c6 {[%emt 0:01:33]} (18... Ng4 {keeps more tension.} 19. b5 Bh4 20. Rf1 Bf6) 19. Rab1 {[%emt 0:04:45]} d5 {[%emt 0:12:33]} 20. exd5 {[%emt 0:00:17]} cxd5 {[%emt 0:00:06]} 21. Qd4 {[%emt 0:00:15]} (21. Qxc8 $11 {keeps the balance.} Rbxc8 22. f3) 21... Bd6 $17 {[%emt 0:04:42]} 22. h3 {[%emt 0:11:31] [#]} ({White should try} 22. b5 $15) 22... Rxe1+ $1 {[%emt 0:05:44]} 23. Bxe1 {[%emt 0:00:02]} Qe8 {[%emt 0:02:28][%cal Ob8b4] and ...Rxb4! would now be decisive} 24. b5 {[%emt 0:03:40]} Be5 {[%emt 0:01:18]} 25. Qc5 {[%emt 0:01:08]} (25. Qd1 $17) 25... Rc8 {[%emt 0:04:01]} 26. Qb4 $2 {[%emt 0:00:22]} (26. Nc6 $17 {was forced.} Bxc6 27. bxc6 Rxc6 28. Qa3) 26... d4 $19 {[%emt 0:01:43]} 27. Ne2 {[%emt 0:00:09]} d3 {[%emt 0:07:41]} 28. Ng3 $2 {[%emt 0:00:48]} (28. Nf4 Be4 29. Bd2 Bxf4 30. Bxf4) 28... Bxg3 {[%emt 0:01:49]} 29. fxg3 {[%emt 0:00:02]} Rc2 {[%emt 0:00:49]} 30. Nc6 {[%emt 0:01:09]} Qe2 {[%emt 0:02:02]} 0-1